Cogmind - Beta 14 @@@ ROGUE MODE // 2024.09.17 @ 20:43:21 Player: Mclir Result: Destroyed by D-53 Grenadier with Mini Grenade Launcher Performance ------------- Evolutions (0) 0 Regions Visited (4) 800 Robots Destroyed (25) 125 Value Destroyed (542) 542 Prototype IDs (23) 460 Alien Tech Used (0) 0 Bonus (300) 300 TOTAL SCORE: 2227 Bonus ------- Aligned with FarCom 300 Cogmind --------- Core Integrity 0/250 Matter 261/300 Energy 274/275 System Corruption 0% Temperature Cool (0) Movement Treading (240) Ox1 Location -9/Mines Parts ------- > --- POWER (1) -------- Deuterium Engine > --- PROPULSION (2) --- Light Treads Light Treads > --- UTILITY (2) ------ High-capacity Storage Unit Targeting Computer > --- WEAPON (2) ------- Assault Rifle Grenade Launcher > --- INVENTORY (20) --- Light Nuclear Core Light Treads Light Treads Medium Storage Unit Seismic Detector Advanced Targeting Computer Light Armor Plating Light Assault Rifle Light Assault Rifle Bore Cannon Grenade Launcher Mini Grenade Launcher Field Lobotomy Kit (5) Hammer Peak State ------------ > --- POWER ------------ Deuterium Engine > --- PROPULSION ------- Light Treads Light Treads > --- UTILITY ---------- High-capacity Storage Unit Targeting Computer > --- WEAPON ----------- Assault Rifle Light Assault Rifle > --- INVENTORY -------- Light Nuclear Core Light Treads Light Treads Medium Storage Unit Seismic Detector Advanced Targeting Computer Light Armor Plating Light Assault Rifle Bore Cannon Grenade Launcher Grenade Launcher Field Lobotomy Kit Hammer [Rating: 12] Favorites ----------- Power Ion Engine Engine Ion Engine Propulsion Light Treads Treads Light Treads Utility Targeting Computer Device Seismic Detector Storage High-capacity Storage Unit Processor Targeting Computer Protection Propulsion Shielding Weapon Assault Rifle Ballistic Gun Assault Rifle Launcher Grenade Launcher Build | -11 -10 -10 -10 -9 ------- Run | Yrd Mat Min Exi Min Slots Evolved . | . . . . . Power . | . . . . . Propulsion . | . . . . . Utility . | . . . . . Weapon . | . . . . . Parts Attached 27 | 7 16 2 1 1 Power 5 | 1 3 1 . . Engine 5 | 1 3 1 . . Core . | . . . . . Reactor . | . . . . . Propulsion 7 | 2 5 . . . Treads 7 | 2 5 . . . Leg . | . . . . . Wheel . | . . . . . Hover . | . . . . . Flight . | . . . . . Utility 8 | 2 5 . 1 . Device 3 | 1 2 . . . Storage 3 | 1 1 . 1 . Processor 1 | . 1 . . . Hackware . | . . . . . Protection 1 | . 1 . . . Artifact . | . . . . . Weapon 7 | 2 3 1 . 1 Energy Gun . | . . . . . Energy Cannon . | . . . . . Ballistic Gun 6 | 2 3 1 . . Ballistic Cannon . | . . . . . Launcher 1 | . . . . 1 Special Weapon . | . . . . . Impact Weapon . | . . . . . Slashing Weapon . | . . . . . Piercing Weapon . | . . . . . Special Melee Weapon . | . . . . . Unidentified Prototypes . | . . . . . Parts Lost 1 | . 1 . . . Power . | . . . . . Propulsion . | . . . . . Utility 1 | . 1 . . . Weapon . | . . . . . Highest Loss Streak 1 | . 1 . . . To Critical Strikes . | . . . . . Average Slot Usage (%) 99 | . 99 100 100 100 Engine 14 | . 14 14 14 14 Treads 27 | . 27 28 28 28 Device 1 | . 3 . . . Storage 14 | . 14 14 14 14 Processor 11 | . 8 14 14 14 Ballistic Gun 24 | . 27 28 28 16 Launcher 3 | . . . . 11 Peak Build Rating 12 | 7 8 10 11 12 Average Rating 9 | 5 7 8 10 11 On Entrance 7 | . 7 8 10 11 Naked Turns . | . . . . . Heaviest Build 54 | 14 18 22 52 54 Greatest Support 40 | 40 40 40 40 40 Greatest Overweight (x) 1 | . . . 1 1 Average Overweight (x) . | . . . . 1 Largest Inventory Capacity 20 | 8 10 10 20 20 Average Capacity 13 | 7 8 10 15 20 Most Carried 14 | 7 10 10 12 14 Average Carried 10 | 5 8 9 10 13 Final Capacity 20 | 8 10 10 20 20 Final Carried 14 | 6 10 10 12 14 Class Distribution -------------------- 88% | Mutant 11% | Scavenger-Mutant Dominant Class ---------------- Mutant | -10/Materials Scavenger-Mutant | -10/Mines Mutant | -10/Exiles Mutant | -9/Mines Resources | -11 -10 -10 -10 -9 ----------- Run | Yrd Mat Min Exi Min Matter Collected 817 | 316 407 64 . 30 Remotely . | . . . . . Salvage Created 834 | 135 660 39 . . Parts 58 | 13 40 5 . . Haulers Intercepted 2 | . 2 . . . Recyclers Shooed 2 | 1 1 . . . Parts Field Recycled . | . . . . . Retrieved Matter . | . . . . . Parts Self-Destructed . | . . . . . Prevented . | . . . . . Kills | -11 -10 -10 -10 -9 ------- Run | Yrd Mat Min Exi Min Combat Hostiles Destroyed 14 | . 11 3 . . Guns 14 | . 11 3 . . Classes Destroyed 9 | 2 6 1 . . Worker 1 | . 1 . . . Builder 1 | . 1 . . . Tunneler 4 | 4 . . . . Hauler 2 | . 2 . . . Recycler 1 | 1 . . . . Operator 1 | . 1 . . . Watcher 1 | . 1 . . . Swarmer 3 | . . 3 . . Grunt 11 | . 11 . . . Best Kill Streak 4 | 2 4 2 . . Combat Bots Only 4 | . 4 2 . . Max Kills in Single Turn 1 | 1 1 1 . . Gunslinging . | . . . . . Exploded . | . . . . . Melee . | . . . . . Uniques/NPCs Destroyed . | . . . . . Combat | -11 -10 -10 -10 -9 -------- Run | Yrd Mat Min Exi Min Hostile Shots Fired 80 | . 63 13 . 4 Missed 16 | . 12 4 . . Damage Taken 927 | . 671 74 . 182 Core 257 | . 147 36 . 74 Absorbed by Shields . | . . . . . Redirected to Shielding 51 | . 51 . . . Regen/Repaired (Parts) 321 | . 321 . . . Core Remaining (%) 100 | 100 . . . . Volleys Fired 92 | 14 68 7 . 3 Largest 2 | 2 2 2 . 2 Hottest 50 | 40 40 40 . 50 Shots Fired 184 | 28 136 14 . 6 Gun 181 | 28 136 14 . 3 Cannon . | . . . . . Launcher 3 | . . . . 3 Special . | . . . . . Kinetic 181 | 28 136 14 . 3 Thermal . | . . . . . Explosive 3 | . . . . 3 Electromagnetic . | . . . . . Robot Hit Streak 9 | 7 9 2 . 1 Robot Miss Streak 3 | 2 3 3 . 1 Penetration Max . | . . . . . Secondary Targets 3 | . 2 1 . . Max Gunslinging Chain 1 | . 1 1 . . Shots Hit Robots 116 | 16 93 5 . 2 Core Hits 61 | 8 42 4 . 7 Critical Kills . | . . . . . Critical Parts Destroyed 1 | . 1 . . . Critical Strikes 1 | . 1 . . . Destroy 1 | . 1 . . . Melee Attacks . | . . . . . Impact . | . . . . . Slashing . | . . . . . Piercing . | . . . . . Sneak Attacks . | . . . . . Combat Hostiles . | . . . . . Follow-up Attacks . | . . . . . Damage Inflicted 1369 | 189 988 52 . 140 Guns 1236 | 189 984 52 . 11 Cannons . | . . . . . Explosions 117 | . . . . 117 Melee . | . . . . . Ramming 16 | . 4 . . 12 Kinetic 1236 | 189 984 52 . 11 Thermal . | . . . . . Explosive 117 | . . . . 117 Electromagnetic . | . . . . . Impact . | . . . . . Slashing . | . . . . . Piercing . | . . . . . Highest Corruption . | . . . . . Average Corruption . | . . . . . Corruption Purged . | . . . . . Corruption Blocked . | . . . . . Overload Shots . | . . . . . Overflow Damage . | . . . . . Projectiles . | . . . . . Explosions . | . . . . . Melee . | . . . . . Knockbacks . | . . . . . Impact . | . . . . . Kinetic . | . . . . . Secondary . | . . . . . Self-Inflicted Damage . | . . . . . Shots . | . . . . . Rammed 5 | . 3 . . 2 Targets Rammed 5 | . 3 . . 2 Kicked . | . . . . . Crushed . | . . . . . Highest Temperature 30 | . 30 . . . Average Temperature 9 | . 9 . . . Received Heat Transfer 381 | . 381 . . . Siege Activations . | . . . . . Robots Corrupted . | . . . . . Combat Hostiles . | . . . . . Parts Fried . | . . . . . Impact Corruptions . | . . . . . Robots Melted . | . . . . . Combat Hostiles . | . . . . . Parts Melted . | . . . . . Heat Transferred . | . . . . . Parts Sabotaged . | . . . . . Parts Stolen . | . . . . . Parts Stripped . | . . . . . Power Chain Reactions . | . . . . . Alert | -11 -10 -10 -10 -9 ------- Run | Yrd Mat Min Exi Min Peak Influence 219 | 25 219 100 . 4 Initial 16 | . 16 . . . Average 39 | 7 79 28 . . Maximum Alert Level 1 | . 1 . . . Low Security (%) 98 | 100 95 100 . 100 Level 1 1 | . 4 . . . Level 2 . | . . . . . Level 3 . | . . . . . Level 4 . | . . . . . Level 5 . | . . . . . High Security . | . . . . . Max Security . | . . . . . Squads Dispatched 3 | . 2 1 . . Investigation 1 | . . 1 . . Extermination . | . . . . . Reinforcement 2 | . 2 . . . Assault . | . . . . . Garrison . | . . . . . Intercept . | . . . . . Searches Triggered . | . . . . . Construction Impeded . | . . . . . Haulers Reinforced . | . . . . . Active Scanning Responses . | . . . . . Cargo Convoy Interrupts . | . . . . . Stealth | -11 -10 -10 -10 -9 --------- Run | Yrd Mat Min Exi Min Distress Signals 1 | . 1 . . . Communications Jammed . | . . . . . Distress Signals . | . . . . . Times Spotted 38 | . 30 4 . 4 Peak Tracking Total 5 | . 5 3 . 2 Tactical Retreats 3 | . 2 1 . . Traps | -11 -10 -10 -10 -9 ------- Run | Yrd Mat Min Exi Min Traps Triggered 1 | . 1 . . . Indirectly . | . . . . . Trap Hack Attempts . | . . . . . Triggered . | . . . . . Disarmed . | . . . . . Reprogrammed . | . . . . . Reused . | . . . . . Traps Extracted . | . . . . . Installed . | . . . . . Triggered . | . . . . . Machines | -11 -10 -10 -10 -9 ---------- Run | Yrd Mat Min Exi Min Machines Disabled 1 | . . 1 . . Max in Single Turn 1 | . . 1 . . Machines Repaired . | . . . . . Machines Dismantled . | . . . . . Machines Sabotaged . | . . . . . Overloaded Fab Kills . | . . . . . Hacking | -11 -10 -10 -10 -9 --------- Run | Yrd Mat Min Exi Min Machines Accessed 8 | . 5 1 2 . Terminals 4 | . 4 . . . Fabricators . | . . . . . Repair Stations 1 | . 1 . . . Recycling Units . | . . . . . Scanalyzers . | . . . . . Garrison Access . | . . . . . Total Hacks 19 | . 16 1 2 . Successful 13 | . 10 1 2 . Failed 5 | . 5 . . . Catastrophic 1 | . 1 . . . Database Lockouts 1 | . 1 . . . Manual 7 | . 6 . 1 . Terminals 10 | . 10 . . . Fabricators . | . . . . . Repair Stations 6 | . 6 . . . Recycling Units . | . . . . . Scanalyzers . | . . . . . Garrison Access . | . . . . . Terminal Hacks 7 | . 4 1 2 . Record 1 | . . . 1 . Robot Analysis 2 | . 2 . . . Open Door 1 | . . 1 . . Locate Traps 2 | . 2 . . . Derelict Proto ID Bank 1 | . . . 1 . Fabricator Hacks . | . . . . . Repair Station Hacks 6 | . 6 . . . Scan Component 3 | . 3 . . . Repair 3 | . 3 . . . Recycling Unit Hacks . | . . . . . Scanalyzer . | . . . . . Garrison Access Hacks . | . . . . . Unauthorized Hacks . | . . . . . Terminals . | . . . . . Fabricators . | . . . . . Repair Stations . | . . . . . Recycling Units . | . . . . . Scanalyzers . | . . . . . Garrison Access . | . . . . . Data Cores Recovered . | . . . . . Used . | . . . . . Hacking Detections 2 | . 2 . . . Full Trace Events . | . . . . . Feedback Events . | . . . . . Feedback Blocked . | . . . . . Robot Schematics Acquired . | . . . . . Robots Built . | . . . . . Authchips . | . . . . . Time . | . . . . . Total Robot Build Rating . | . . . . . Part Schematics Acquired . | . . . . . Parts Built . | . . . . . Authchips . | . . . . . Time . | . . . . . Total Part Build Rating . | . . . . . Parts Repaired 3 | . 3 . . . Time 78 | . 78 . . . Parts Recycled . | . . . . . Recycled Matter . | . . . . . Retrieved Matter . | . . . . . Retrieved Components . | . . . . . Parts Scanalyzed . | . . . . . Part Schematics Acquired . | . . . . . Parts Damaged . | . . . . . Bothacking | -11 -10 -10 -10 -9 ------------ Run | Yrd Mat Min Exi Min Used RIF Installer . | . . . . . Robots Hacked . | . . . . . Non-combat . | . . . . . Combat . | . . . . . Robot Hacks Applied . | . . . . . Relay Couplers Released . | . . . . . Fabnet Peak Effective % . | . . . . . Robots Rewired . | . . . . . Allies Hacked . | . . . . . Hacks Repelled . | . . . . . Allies | -11 -10 -10 -10 -9 -------- Run | Yrd Mat Min Exi Min Total Allies 6 | . . 5 . 1 Largest Group 5 | . . 5 5 4 Highest-Rated Group 82 | . . 82 82 71 Highest-Rated Ally 31 | . . 31 31 31 Total Orders . | . . . . . Ally Attacks 2 | . . . . 2 Total Damage 17 | . . . . 17 Kills . | . . . . . Allies Corrupted . | . . . . . Allies Melted . | . . . . . Intel | -11 -10 -10 -10 -9 ------- Run | Yrd Mat Min Exi Min Robot Analysis Total 2 | . 2 . . . Derelict Logs Recovered 4 | . . 3 . 1 Drone Launches . | . . . . . Drone Recoveries . | . . . . . Exploration | -11 -10 -10 -10 -9 ------------- Run | Yrd Mat Min Exi Min Turns Passed 5825 | 260 2036 913 1002 1614 Spaces Moved 2918 | 133 1076 552 515 642 Core 14 | 14 . . . . Treads 2904 | 119 1076 552 515 642 Legs . | . . . . . Wheels . | . . . . . Hover . | . . . . . Flight . | . . . . . Fastest Speed 50 | 50 160 160 160 240 Average Speed 183 | 148 160 160 194 240 Slowest Speed 240 | 160 160 160 240 240 Overloaded Moves . | . . . . . Propulsion Burnouts . | . . . . . Robots Hopped . | . . . . . Cave-ins Triggered . | . . . . . Exploration Rate (%) 79 | 9 99 95 91 102 Regions Visited 4 Branch Regions 3 Pre-discovered Areas 2 | . . . 1 1 Known Exits Taken . | . . . . . Unknown Exits Taken 4 | 1 1 1 1 . Scrap Searched 3 | . . 1 . 2 Spaces Dug . | . . . . . Terrain Destroyed 9 | . . . . 9 Melee . | . . . . . Projectile . | . . . . . AOE 9 | . . . . 9 Terrain Rammed . | . . . . . Walls Destroyed . | . . . . . Machines Disabled . | . . . . . Actions | -11 -10 -10 -10 -9 --------- Run | Yrd Mat Min Exi Min Total 3237 | 171 1268 572 518 708 Wait 149 | 5 82 4 . 58 Move 2914 | 132 1075 551 514 642 Hop . | . . . . . Pick Up 33 | 13 13 3 2 2 Fast Attach 4 | . 4 . . . Attach 8 | 7 1 . . . Detach . | . . . . . Swap 15 | . 11 2 1 1 Drop 17 | . 11 5 1 . Fire 92 | 14 68 7 . 3 Melee . | . . . . . Ram . | . . . . . Kick . | . . . . . Crush 5 | . 3 . . 2 Escape Stasis . | . . . . . Rewire . | . . . . . Trap . | . . . . . Miscellaneous . | . . . . . Route ------- -11/Scrapyard -10/Materials (discovered 4 exits: [*Mat x3] / *Min) -10/Mines (discovered 3 exits: [*Mat] / *Exi / [*Sub]) -10/Exiles -9/Mines (discovered 2 exits: [*Mat x2]) History --------- Turn | Location | Event 11 | -11/Scrapyard | Discovered new exit (range 16) 261 | -11/Scrapyard | Entered Materials 318 | -10/Materials | Build established: Mutant 398 | -10/Materials | Discovered new exit (range 14) 439 | -10/Materials | Discovered new exit (range 15) 982 | -10/Materials | Discovered new exit (range 8) 1251 | -10/Materials | Core integrity fell below 50% 1459 | -10/Materials | Discovered new exit (range 4) 1798 | -10/Materials | Repaired Lgt. Treads 1827 | -10/Materials | Repaired Lgt. Treads 1854 | -10/Materials | Repaired Assault Rifle 2007 | -10/Materials | Central database locked down 2297 | -10/Materials | Entered Mines 2321 | -10/Mines | Learned location of 1 exit from Materials 2539 | -10/Mines | A weapon hastily lodged in a ceiling crevice suddenly fell to the ground 2634 | -10/Mines | Discovered new exit (range 9) 2733 | -10/Mines | Build established: Scavenger-Mutant 2845 | -10/Mines | Assisted by bots powering up and referring to "LRC-V3" 2928 | -10/Mines | Discovered new exit (range 3) 2994 | -10/Mines | Learned Materials stockpile data 3010 | -10/Mines | Found a hidden stash of uninstalled traps 3059 | -10/Mines | Deemed a non-threat by the Exiles lab entrance 3059 | -10/Mines | Discovered new exit (range 5) 3127 | -10/Mines | Met a Derelict shopkeep closing up shop 3210 | -10/Mines | Entered Exiles 3210 | -10/Exiles | Accompanied by 5 allies 3240 | -10/Exiles | Led the pair of lost Derelicts to a safe place 3270 | -10/Exiles | Met 8R-AWN 3310 | -10/Exiles | Met EX-HEX 3388 | -10/Exiles | Met EX-DEC 3421 | -10/Exiles | Build established: Mutant 3443 | -10/Exiles | Visited The Gauntlet 3771 | -10/Exiles | Learned location of Zion (-6) 3817 | -10/Exiles | Met EX-BIN 3903 | -10/Exiles | Aligned with FarCom system 3906 | -10/Exiles | Given EX-Vault access code 3966 | -10/Exiles | Opened EX-Vault 3978 | -10/Exiles | Found Field Lobotomy Kit 4027 | -10/Exiles | Warned to stay clear of 0b10 Research branches 4180 | -10/Exiles | Discovered new exit (range 14) 4212 | -10/Exiles | Left Exiles lab with Field Lobotomy Kit 4212 | -10/Exiles | Entered Mines 4212 | -9/Mines | Accompanied by 3 allies 4259 | -9/Mines | YI-UF0 nonchalantly dropped a Grenade Launcher on the ground 4483 | -9/Mines | Assembled infested the area 4488 | -9/Mines | Assisted by a Guerilla fighting off Assembled 5027 | -9/Mines | Discovered new exit (range 5) 5229 | -9/Mines | Learned location of Storage (-9) 5242 | -9/Mines | Received a Mining Laser from a helpful Derelict 5248 | -9/Mines | Discovered new exit (range 8) 5824 | -9/Mines | Core integrity fell below 20% 5826 | -9/Mines | Destroyed by D-53 Grenadier with Mini Grenade Launcher Last Messages --------------- take my spare." D0-TXV(g): "You're apparently new around these parts, I'll cover you." EXIT=FOUND D0-TXV(g): "Mining lasers are a lot more useful than you might think..." T-07 Excavator is excavating. D0-TXV(g): "You look like you can take it from here!" D0-TXV(g) slips back into the shadows. Mercenary 1a destroyed. Trooper 1b destroyed. T-07 Excavator destroyed. The unstable cave ceiling collapses. Destroyed Lgt. Ion Engine. U-05 Engineer lays Concrete. Trooper 1a destroyed. U-05 Engineer lays Concrete. U-05 Engineer destroyed. U-05 Engineer lays Concrete. Map ----- +----------------------------------------------------+ | ?????????????????????????????????????????????????? | | ?????????????????????????????????????????????????? | | ?????????????????????????????????????????????????? | | ????????????????????????????????????####????????## | | ???????????????????????????????????## ##???#### | | ????????????#####??????????????????# ##?# | | ???????????## ##??????????????#### ## | | ######?????# ##?????????????# | | #?????# ##????????????# ### | | ## #?????# #????????????# #?### | | ?# ##?????# #????????????# #???## # | | ?####?????## #????????????# #????# ### | | ?????????## #????????????# #????## #?? | | ????????## ##?????????#### ####### """ ### | | ????????# ####??????????# """ # | | ????????# ##?????????????# """ | | ????????# ##??????????????# ######## | | ######### ##???????????????# #??????# # | | # #??######????????# #?????## ## | | # #### ##???????# #????## ##? | | # ##### ## ######### #????# #?? | | #???## # ## k#????# #?? | | #????## ##???## ##?? | | ####?????## ##???# ######??? | | ??????????## ##??# #???????? | | ???????????#### @ #### ###?????? | | ??????????????## u ##????? | | ?????????????# dd #????? | | ?????????????# ##???? | | ????????????# # ### ### ##??? | | ???????????## #####?## ##?## #### | | ???????????# ##### [##?# ##???## # | | ???????????# #?## !%#?## ###?????# | | ##?????????##% #### %|#??####???????# # | | #####??????### ### # #?????????????## #### | | ##???????#% ##### #??????????????####??? | | #????#??# % ##????#########???????? | | #??? # ###### #####?# #???????? | | ## ###### # #????## #?# """ #???????? | | ?## ## #### #?????####### ### """ #???????? | | ??# #???????????# < """ #???????? | | #?# ######???????????##### #???????? | | #?# " ##????????????????????# #???????? | | #?# ##?????????????????????#########???????? | | #?## %###?????????????????????????????????????? | | ##?# #???????????????????????????????????????? | | # ## ##???????????????????????????????????????? | | ## # ###???????????????????????????????#######??? | | #### #????????????????????????????????## ##?? | | % #????????????????????????????????# #?? | +----------------------------------------------------+ Best States ------------- Heat Dissipation 25 Energy Generation 14 Energy Capacity 275 Matter Stores 300 Matter Capacity 300 Sight Range 16 Terrain Scan Density 10 Propulsion Shielding 33 Evasion (%) 50 Targeting Accuracy 5 Recoil Reduction 2 Item Schematics ----------------- None Robot Schematics ------------------ None Fabricated ------------ Nothing Alien Tech Used ----------------- None Achievements -------------- None Challenges ------------ None Game ------ Seed VampiricGyrokineticDatajack Manual? 0 Play Time 00:33:27 Cumulative 35.8 hours Start 2024.09.15 @ 23:29:55 End 2024.09.17 @ 20:43:21 Sessions 4 Manual Loads 0 Difficulty Rogue Special Mode None Game No. 23 Rogue 23 Adventurer 0 Explorer 0 Win Type - Total 1 Types 1/0/0/0/0/0/0/0/0 Lore% 14 Gallery% 21 Achievement% 22 Wizard Run 0 Options --------- Layout 1 ASCII 0 Keyboard 0 Movement Mouse Keybinds 0 Fullscreen 1 Font 18/SmallcapsGlow Map View 54x44 Zoom Use 0% Tactical HUD 0 Map Filters NONE Filters NONE Steam 0 RUN: 2f8b4376-4270-450a-8407-70e4978b9897